bitfinex/quotes_SOLUSD_20260223
["timestamp","ask_amount","ask_price","bid_price","bid_amount"]
[1771821599523,0.6504767,77.333,77.296,0.98101781]
[1771821599955,0.6504767,77.333,77.3,11.49940375]
[1771821600350,0.65488309,77.361,77.321,0.98101781]
[1771821600641,0.65488309,77.361,77.331,0.98101781]
[1771821601451,0.65488309,77.361,77.333,0.98101781]
[1771821601950,0.65923124,77.372,77.333,0.98101781]
[1771821602128,0.66349804,77.38,77.351,0.98101781]
[1771821602328,0.66349804,77.388,77.36,11.49940375]
[1771821602561,0.66349804,77.388,77.358,0.98101781]
[1771821603433,0.66770806,77.379,77.32,0.98101781]
[1771821603664,0.66770806,77.391,77.351,0.98101781]
[1771821603837,45.22255959,77.395,77.361,0.98101781]
[1771821603838,12.92073131,77.395,77.361,0.98101781]
[1771821604034,0.66770806,77.399,77.361,0.98101781]
[1771821604238,12.92023049,77.398,77.361,0.98101781]
[1771821604552,0.2,77.4,77.371,0.98101781]
[1771821605850,0.2,77.4,77.373,0.98101781]
[1771821607956,0.2,77.4,77.375,0.98101781]
[1771821608452,0.2,77.4,77.381,0.98101781]
[1771821608851,0.68814768,77.414,77.382,0.98101781]
[1771821609753,0.69095001,77.421,77.391,0.98101781]
[1771821610463,0.69095001,77.421,77.393,0.98101781]
[1771821610758,12.9159347,77.424,77.393,0.98101781]
[1771821610959,12.91397502,77.436,77.401,0.98101781]
[1771821611142,0.69645021,77.435,77.401,0.98101781]
[1771821612563,0.69912812,77.433,77.403,0.98101781]
[1771821613060,0.69912812,77.433,77.393,0.98101781]
[1771821613261,0.70179977,77.419,77.368,0.98101781]
[1771821613644,0.70179977,77.409,77.368,0.98101781]
[1771821614460,0.70446229,77.407,77.369,12.92507334]
[1771821615041,0.70446229,77.407,77.371,0.98101781]
[1771821617458,0.70446229,77.407,77.37,11.45889712]
[1771821617459,13.63615235,77.406,77.373,0.95785251]
[1771821618764,13.63615235,77.406,77.381,0.95785251]
[1771821619764,0.71725718,77.406,77.383,0.95785251]
[1771821619976,12.91828854,77.41,77.383,0.95785251]
[1771821620350,0.7245863,77.409,77.383,0.95785251]
[1771821620564,0.7245863,77.409,77.377,12.92368936]
[1771821621870,0.72697764,77.407,77.377,0.95785251]
[1771821623869,0.72697764,77.407,77.383,0.95785251]
[1771821624067,12.91856138,77.408,77.383,0.95785251]
[1771821624585,12.91788589,77.413,77.39,12.41674963]
[1771821624761,12.91788589,77.413,77.391,0.95785251]
[1771821625673,13.65412038,77.413,77.391,0.95785251]
[1771821625862,12.91788589,77.413,77.384,0.95785251]
[1771821626480,0.73848753,77.418,77.39,11.45889712]
[1771821627559,0.74071566,77.416,77.391,0.95785251]
[1771821628162,0.74289268,77.424,77.401,0.95785251]
[1771821628362,0.74289268,77.424,77.394,0.95785251]
[1771821629579,0.74506796,77.406,77.362,0.95785251]
[1771821629880,0.74506796,77.406,77.37,11.45889712]
[1771821630861,0.98522571,77.404,77.371,12.92473924]
[1771821631656,0.98522571,77.404,77.372,0.95785251]
[1771821633370,0.98522571,77.402,77.374,0.95785251]
[1771821635684,0.98522571,77.399,77.365,0.95785251]
[1771821638191,0.98522571,77.399,77.362,12.92624285]
[1771821638192,0.98522571,77.398,77.371,0.95785251]
[1771821638373,0.98522571,77.404,77.371,0.95785251]
[1771821639893,0.98522571,77.402,77.373,0.95785251]
[1771821641987,12.91972971,77.401,77.373,0.95785251]
[1771821642188,0.98522571,77.4,77.373,0.95785251]
[1771821643176,0.98522571,77.398,77.373,0.95785251]
[1771821644197,0.98522571,77.396,77.361,12.92640994]
[1771821644391,0.98522571,77.396,77.361,0.95785251]
[1771821645695,0.98522571,77.396,77.371,0.95785251]
[1771821646271,0.98522571,77.396,77.373,0.95785251]
[1771821646678,12.91982777,77.401,77.373,0.95785251]
[1771821646877,0.98522571,77.4,77.373,0.95785251]
[1771821648496,0.98522571,77.4,77.375,0.98726046]
[1771821651501,12.92006356,77.399,77.375,0.98726046]
[1771821651703,0.98522571,77.4,77.377,0.98726046]
[1771821652281,1.01181834,77.406,77.377,0.98726046]
[1771821652681,1.01181834,77.406,77.372,12.92451314]
[1771821652990,1.01181834,77.406,77.373,0.98726046]
[1771821653408,1.01181834,77.406,77.375,0.98726046]
[1771821653703,5.13814971,77.4,77.375,0.98726046]
[1771821653912,1.01181834,77.399,77.375,0.98726046]
[1771821655095,1.01181834,77.399,77.365,0.98726046]
[1771821655294,1.01181834,77.389,77.365,0.98726046]
[1771821655505,1.01181834,77.389,77.366,12.92557454]
[1771821655713,1.01181834,77.389,77.367,0.98726046]
[1771821656619,5.13814971,77.38,77.36,0.98726046]
[1771821656802,1.01181834,77.379,77.36,0.98726046]
[1771821657114,1.01181834,77.385,77.36,0.98726046]
[1771821658909,12.92173306,77.389,77.362,0.98726046]
[1771821659384,1.01181834,77.388,77.362,0.98726046]
[1771821660112,1.01181834,77.388,77.364,0.98726046]
[1771821660312,12.92116495,77.393,77.364,0.98726046]
[1771821661209,1.01181834,77.405,77.364,0.98726046]
[1771821661614,1.01181834,77.405,77.371,0.98726046]
[1771821661997,13.92882069,77.418,77.371,0.98726046]
[1771821662203,13.92882069,77.418,77.37,5.13814971]
[1771821662204,1.01181834,77.417,77.373,0.98726046]
[1771821662507,5.13814971,77.41,77.373,0.98726046]
[1771821662711,1.01181834,77.409,77.373,0.98726046]
[1771821663614,5.13814971,77.41,77.373,0.98726046]
[1771821664003,12.9183945,77.409,77.374,12.92423811]
[1771821664203,1.01181834,77.408,77.375,0.98726046]
[1771821665118,1.01181834,77.414,77.375,0.98726046]
[1771821665317,5.13814971,77.42,77.381,0.98726046]
[1771821665619,1.01181834,77.428,77.391,0.98726046]
[1771821665998,1.01181834,77.428,77.393,0.98726046]
[1771821668218,1.01181834,77.438,77.401,0.98726046]
[1771821670301,1.01181834,77.429,77.403,0.98726046]
[1771821673320,1.01181834,77.429,77.404,12.91922898]
[1771821673527,1.01181834,77.429,77.405,0.98726046]
[1771821676227,1.01181834,77.429,77.407,0.98726046]
[1771821676702,1.01181834,77.437,77.407,0.98726046]
[1771821677711,1.01181834,77.437,77.408,12.91856138]
[1771821678408,1.01181834,77.437,77.409,1.03808993]
[1771821678911,1.01181834,77.437,77.41,12.91822761]
[1771821679718,1.08447342,77.429,77.399,1.03808993]
[1771821680729,1.08447342,77.441,77.401,1.03808993]
[1771821681020,1.08447342,77.441,77.403,1.03808993]
[1771821681726,1.08447342,77.448,77.411,1.03808993]
[1771821682026,1.08447342,77.456,77.411,1.03808993]
[1771821683127,1.08447342,77.456,77.421,1.03808993]
[1771821684331,1.08447342,77.456,77.423,1.03808993]
[1771821684531,1.08447342,77.449,77.416,1.03808993]
[1771821685234,1.08447342,77.449,77.38,3.69383402]
[1771821685235,5.13496328,77.44,77.393,1.03808993]
[1771821685531,1.08447342,77.439,77.393,1.03808993]
[1771821686625,1.08447342,77.437,77.394,12.92089826]
[1771821686929,1.08447342,77.437,77.395,1.03808993]
[1771821688832,1.08447342,77.435,77.397,1.03808993]
[1771821690845,1.08447342,77.429,77.397,1.03808993]
[1771821691030,1.08447342,77.429,77.392,1.03808993]
[1771821691715,1.08447342,77.409,77.339,1.03808993]
[1771821692035,1.08447342,77.389,77.361,1.03808993]
[1771821693416,1.08447342,77.389,77.363,1.03808993]
[1771821694435,12.92190003,77.388,77.363,1.03808993]
[1771821694829,1.08447342,77.403,77.371,1.03808993]
[1771821695137,1.08447342,77.401,77.371,1.03808993]
[1771821695525,1.08447342,77.399,77.373,1.03808993]
[1771821699060,1.08447342,77.399,77.375,1.03808993]
[1771821699349,1.08447342,77.405,77.375,1.03808993]
[1771821700237,1.08447342,77.403,77.376,12.92390405]
[1771821700424,1.08447342,77.403,77.377,1.03808993]
[1771821702446,1.08447342,77.403,77.378,13.96165993]
[1771821703046,1.08447342,77.403,77.379,1.03808993]
[1771821704445,1.08447342,77.403,77.381,1.03808993]
[1771821705446,1.08447342,77.413,77.381,1.03808993]
[1771821706550,1.08447342,77.411,77.383,1.03808993]
[1771821707153,1.08447342,77.411,77.376,1.03808993]
[1771821708550,1.12859355,77.409,77.376,1.03808993]
[1771821708754,1.12859355,77.407,77.377,12.92373702]
[1771821709139,1.12859355,77.407,77.372,1.02341665]
[1771821709537,1.12859355,77.399,77.372,1.02341665]
[1771821710256,12.92023049,77.398,77.372,1.02341665]
[1771821710653,1.12859355,77.397,77.374,1.02341665]
[1771821714458,1.12859355,77.397,77.376,1.02341665]
[1771821715639,14.0490194,77.397,77.376,1.02341665]
[1771821716552,5.13496328,77.41,77.378,1.02341665]
[1771821716553,1.12859355,77.403,77.378,1.02341665]
[1771821719478,1.12859355,77.403,77.379,12.92340299]
[1771821719763,1.12859355,77.399,77.37,1.02341665]
[1771821720148,1.12859355,77.399,77.371,1.02341665]
[1771821720352,1.12859355,77.406,77.371,1.02341665]
[1771821721468,1.12859355,77.406,77.37,5.13496328]
[1771821721469,1.12859355,77.406,77.373,1.02341665]
[1771821721766,1.12859355,77.404,77.373,1.02341665]
[1771821724072,1.12859355,77.402,77.373,1.02341665]
[1771821726679,1.12859355,77.4,77.375,1.02341665]
[1771821730083,1.12859355,77.398,77.375,1.02341665]
[1771821731677,1.12859355,77.4,77.377,1.02341665]
[1771821733859,1.12859355,77.4,77.378,12.92357]
[1771821734054,1.12859355,77.4,77.379,1.02341665]
[1771821735383,1.12859355,77.4,77.381,1.02341665]
[1771821736991,1.14047152,77.41,77.381,1.02341665]
[1771821737188,1.14047152,77.426,77.391,1.09538687]
[1771821737372,1.14047152,77.424,77.393,1.09538687]
[1771821738997,14.0096152,77.429,77.401,1.03303917]
[1771821739178,1.09443301,77.429,77.401,1.03303917]
[1771821739381,1.09443301,77.429,77.403,1.03303917]
[1771821739882,1.09443301,77.442,77.411,1.03303917]
[1771821740374,1.09443301,77.442,77.421,1.03303917]
[1771821741273,12.91265929,77.444,77.421,1.03303917]
[1771821741573,1.09443301,77.447,77.423,1.03303917]
[1771821743500,12.91222271,77.446,77.423,1.03303917]
[1771821743678,14.00665572,77.446,77.423,1.03303917]
[1771821745070,1.09443301,77.445,77.423,1.03303917]
[1771821747393,1.09443301,77.445,77.42,5.13848428]
[1771821747394,1.09443301,77.445,77.425,1.03303917]
[1771821747872,1.09443301,77.45,77.425,1.03303917]
[1771821749398,1.09443301,77.45,77.427,1.03303917]
[1771821751978,1.09443301,77.448,77.427,1.03303917]
[1771821753299,1.09443301,77.446,77.427,1.03303917]
[1771821754884,1.09443301,77.451,77.427,1.03303917]
[1771821755699,1.09443301,77.449,77.427,1.03303917]
[1771821756374,1.09443301,77.449,77.429,1.03303917]
[1771821757686,1.09443301,77.449,77.431,1.03303917]
[1771821758978,32.27446478,77.461,77.431,1.03303917]
[1771821758979,1.09443301,77.459,77.431,1.03303917]
[1771821759299,1.09443301,77.459,77.433,1.03303917]
[1771821761205,1.09443301,77.457,77.433,1.03303917]
[1771821762621,1.09443301,77.455,77.433,1.03303917]
[1771821763303,1.09443301,77.455,77.435,1.03303917]
[1771821763810,1.09443301,77.462,77.435,1.03303917]
[1771821764012,1.09443301,77.466,77.435,1.03303917]
[1771821764883,3.69383402,77.462,77.437,1.03303917]
[1771821765084,1.09443301,77.463,77.437,1.03303917]
[1771821765290,12.9090557,77.465,77.437,1.03303917]
[1771821765802,1.09443301,77.468,77.437,1.03303917]
[1771821767083,1.09443301,77.468,77.43,5.13848428]
[1771821767084,1.09443301,77.466,77.439,1.03303917]
[1771821768811,1.09443301,77.466,77.441,1.09654862]
[1771821769806,1.08936599,77.471,77.441,1.09654862]
[1771821772204,1.08936599,77.471,77.443,1.09654862]
[1771821772914,1.08936599,77.469,77.438,1.09654862]
[1771821773708,1.08936599,77.469,77.439,1.09654862]
[1771821774096,1.08936599,77.467,77.429,12.91505398]
[1771821774310,1.08936599,77.467,77.429,1.09654862]
[1771821777419,1.08936599,77.465,77.431,1.09654862]
[1771821779320,1.08936599,77.465,77.441,1.09654862]
[1771821779899,1.08936599,77.463,77.441,1.09654862]
[1771821780495,1.08936599,77.463,77.443,1.09654862]
[1771821781738,1.08936599,77.463,77.424,1.09654862]
[1771821782109,1.08936599,77.459,77.424,1.09654862]
[1771821782304,1.08936599,77.459,77.419,1.09654862]
[1771821782623,1.08936599,77.459,77.421,1.09654862]
[1771821784127,16.51682293,77.47,77.408,45.21496485]
[1771821784128,12.46770464,77.47,77.442,1.09654862]
[1771821784332,1.08936599,77.469,77.442,1.09654862]
[1771821785210,1.08936599,77.469,77.451,1.09654862]
[1771821785411,1.08936599,77.475,77.451,1.09654862]
[1771821786726,12.90672311,77.479,77.453,1.09654862]
[1771821787725,12.90672311,77.479,77.455,1.09654862]
[1771821787726,1.08936599,77.479,77.455,1.09654862]
[1771821788229,1.08936599,77.478,77.455,1.09654862]
[1771821790133,1.08936599,77.478,77.457,1.09654862]
[1771821793235,1.08936599,77.478,77.452,1.09654862]
[1771821794322,0.2,77.48,77.452,1.09654862]
[1771821795320,0.2,77.48,77.45,5.13848428]
[1771821795321,0.2,77.48,77.454,1.09654862]
[1771821797235,0.2,77.48,77.455,12.91072235]
[1771821797536,0.2,77.48,77.456,1.11255755]
[1771821798543,12.90672311,77.479,77.458,1.13149878]
[1771821798841,1.09790588,77.478,77.443,1.13149878]
[1771821801125,1.09790588,77.476,77.445,1.13149878]
[1771821801324,12.90705628,77.477,77.431,1.13149878]
[1771821801325,1.09790588,77.469,77.431,1.13149878]
[1771821802126,1.09790588,77.459,77.431,1.13149878]
[1771821803142,1.09790588,77.464,77.433,1.13149878]
[1771821803338,1.09790588,77.464,77.441,1.13149878]
[1771821803542,14.00637807,77.469,77.441,1.13149878]
[1771821803733,1.09790588,77.468,77.441,1.13149878]
[1771821804743,12.90872242,77.467,77.441,1.13149878]
[1771821805046,1.09790588,77.466,77.441,1.13149878]
[1771821805740,12.9090557,77.465,77.441,1.13149878]
[1771821807349,1.09790588,77.464,77.431,1.13149878]
[1771821808244,1.09790588,77.462,77.432,1.13149878]
[1771821810144,1.09790588,77.471,77.441,1.13149878]
[1771821810456,1.09790588,77.477,77.443,1.13149878]
[1771821810632,14.00512876,77.476,77.443,1.13149878]
[1771821811136,1.09790588,77.475,77.443,1.13149878]
[1771821814636,14.00546196,77.474,77.445,1.13149878]
[1771821816352,1.09790588,77.474,77.445,1.13149878]
[1771821816756,1.09790588,77.474,77.447,1.13149878]
[1771821818153,12.90749588,77.475,77.447,1.13149878]
[1771821818154,12.90772269,77.473,77.447,1.13149878]
[1771821818360,1.09790588,77.472,77.447,1.13149878]
[1771821820760,1.09790588,77.472,77.449,1.13149878]
[1771821823260,12.90710404,77.477,77.44,5.12725576]
[1771821823261,1.09790588,77.476,77.451,1.13149878]
[1771821826162,1.09790588,77.476,77.453,1.13149878]
[1771821826354,0.2,77.48,77.453,1.13149878]
[1771821826355,1.09790588,77.474,77.453,1.13149878]
[1771821831875,1.09790588,77.474,77.455,1.04449406]
[1771821833261,0.2,77.48,77.457,1.04449406]
[1771821833262,1.07907179,77.478,77.457,1.04449406]
[1771821836172,1.27907179,77.48,77.461,1.04449406]
[1771821837679,1.27907179,77.48,77.462,1.04449406]
[1771821838173,0.2,77.48,77.462,1.04449406]
[1771821838476,0.2,77.49,77.471,1.04449406]
[1771821838853,0.2,77.49,77.461,45.18400606]
[1771821838854,1.27907179,77.49,77.461,12.90970029]
[1771821839054,1.27907179,77.49,77.462,1.04449406]
[1771821839655,1.27907179,77.49,77.464,1.04449406]
[1771821842573,1.27907179,77.49,77.465,12.9090557]
[1771821842782,1.27907179,77.49,77.466,1.04449406]
[1771821843764,1.07907179,77.495,77.471,1.04449406]
[1771821843962,0.2,77.5,77.481,1.04449406]
[1771821844163,1e-08,77.51,77.492,1.04449406]
[1771821844370,1.07907179,77.526,77.501,1.04449406]
[1771821844556,1.07907179,77.517,77.485,13.95021294]
[1771821845284,1.07907179,77.509,77.479,13.95114276]
[1771821846174,1.07907179,77.507,77.48,1.04449406]
[1771821846488,1.07907179,77.507,77.481,1.04449406]
[1771821847168,1.07907179,77.507,77.475,1.04449406]
[1771821848588,1.07907179,77.505,77.477,1.04449406]
[1771821849666,5.12725576,77.52,77.463,32.27342125]
[1771821849667,1.07907179,77.499,77.473,1.04449406]
[1771821849871,1.07907179,77.499,77.468,13.9529885]
[1771821850185,1.07907179,77.499,77.469,1.04449406]
[1771821852678,1.07907179,77.497,77.471,1.04449406]
[1771821858696,1.07613135,77.495,77.471,1.04449406]
[1771821860798,1.07613135,77.493,77.471,1.04449406]
[1771821861005,1.07613135,77.489,77.456,1.07334549]
[1771821862701,1.07613135,77.487,77.458,1.07334549]
[1771821864403,1.07613135,77.487,77.457,12.91038899]
[1771821864585,1.07613135,77.477,77.448,1.07334549]
[1771821867397,1.07613135,77.475,77.45,1.07334549]
[1771821867989,1.07613135,77.475,77.451,1.07334549]
[1771821871092,1.07613135,77.473,77.451,1.07334549]
[1771821873903,1.07613135,77.477,77.453,1.07334549]
[1771821875989,1.07613135,77.475,77.453,1.07334549]
[1771821878114,1.07613135,77.475,77.455,1.07334549]
[1771821878513,12.90552448,77.487,77.456,1.07334549]
[1771821880514,0.77119473,77.497,77.461,1.07334549]
[1771821883118,45.16247306,77.498,77.45,37.40491369]
[1771821883119,0.77248243,77.495,77.463,1.07334549]
[1771821885716,0.77332106,77.493,77.464,12.90922234]
[1771821885903,0.77332106,77.489,77.461,1.07334549]
[1771821888420,0.7749553,77.487,77.461,1.07334549]
[1771821888623,0.7749553,77.479,77.441,1.11204364]
[1771821889616,0.7749553,77.479,77.44,50.32244409]
[1771821889617,13.68058003,77.488,77.451,1.11204364]
[1771821889817,13.68058003,77.488,77.461,1.11204364]
[1771821890303,0.77574912,77.493,77.463,1.11204364]
[1771821893327,5.1261631,77.48,77.452,1.11204364]
[1771821893508,0.77686945,77.479,77.446,1.11204364]
[1771821896954,0.77798602,77.469,77.44,1.11204364]
[1771821897224,0.77837257,77.446,77.401,14.03177335]
[1771821897431,3.69383402,77.447,77.401,14.03177335]
[1771821897432,0.77837257,77.429,77.401,14.03177335]
[1771821897929,0.77837257,77.429,77.401,1.11204364]
[1771821898710,5.1261631,77.41,77.397,12.92034367]
[1771821898928,5.1261631,77.41,77.38,0.1]
[1771821900434,5.1261631,77.42,77.38,0.1]
[1771821900734,5.1261631,77.42,77.381,1.11204364]
[1771821901635,5.1261631,77.42,77.383,1.11204364]
[1771821901841,5.1261631,77.4,77.383,1.11204364]
[1771821902145,5.1261631,77.39,77.383,1.11204364]
[1771821902927,5.1261631,77.4,77.383,1.11204364]
[1771821903237,5.1261631,77.4,77.385,1.11204364]
[1771821905540,5.1261631,77.4,77.387,1.11204364]
[1771821906120,1.05976063,77.399,77.38,0.1]
[1771821906441,1.05976063,77.389,77.37,1.21204364]
[1771821906734,5.1261631,77.38,77.37,1.21204364]
[1771821907320,5.1261631,77.38,77.372,1.11204364]
[1771821907520,1.05976063,77.389,77.373,12.92440515]
[1771821907726,1.05976063,77.395,77.374,1.11204364]
[1771821909243,1.05976063,77.399,77.376,1.11204364]
[1771821909617,14.68124251,77.422,77.381,1.11204364]
[1771821909822,1.05976063,77.438,77.391,1.11204364]
[1771821910021,5.1261631,77.43,77.391,1.11204364]
[1771821910838,1.05976063,77.434,77.401,1.11204364]
[1771821912637,1.05976063,77.441,77.401,1.11204364]
[1771821912818,1.05976063,77.449,77.413,1.11204364]
[1771821913544,1.05976063,77.448,77.413,1.11204364]
[1771821916547,1.05976063,77.448,77.415,1.11204364]
[1771821917943,1.14253543,77.439,77.415,1.11204364]
[1771821919034,1.14253543,77.444,77.417,1.10532875]
[1771821920281,1.14253543,77.459,77.421,1.10532875]
[1771821920933,1.14253543,77.465,77.423,1.10532875]
[1771821921132,1.14253543,77.459,77.423,1.10532875]
[1771821923052,1.14253543,77.459,77.424,45.20562099]
[1771821923251,1.14253543,77.464,77.425,1.10532875]
[1771821924475,6.27411714,77.48,77.441,1.10532875]
[1771821924683,1.14253543,77.486,77.441,1.10532875]
[1771821927063,1.14253543,77.486,77.443,1.10532875]
[1771821934977,1.14253543,77.486,77.445,1.10532875]
[1771821935293,32.25823541,77.5,77.445,1.10532875]
[1771821935294,1.14253543,77.479,77.445,1.10532875]
[1771821939083,1.14253543,77.469,77.446,12.91222271]
[1771821939385,1.14253543,77.469,77.447,1.10532875]
[1771821940184,1.14253543,77.469,77.446,12.91222271]
[1771821940361,1.14253543,77.459,77.437,1.10532875]
[1771821940561,1.14253543,77.459,77.411,103.3]
[1771821940562,1.14253543,77.459,77.412,1.10532875]
[1771821941385,1.14253543,77.459,77.413,1.10532875]
[1771821943687,1.14253543,77.459,77.421,1.10532875]
[1771821946583,1.14253543,77.459,77.423,1.10532875]
[1771821948568,1.14253543,77.459,77.431,1.04133039]
[1771821950201,1.10609143,77.449,77.424,45.20562099]
[1771821952575,1.10609143,77.449,77.424,1.04133039]
[1771821952965,1.10609143,77.449,77.419,1.04133039]
[1771821955487,1.10609143,77.449,77.421,1.04133039]
[1771821958079,1.10609143,77.449,77.42,45.20795659]
[1771821958287,5.13158171,77.45,77.417,1.04133039]
[1771821958288,1.10609143,77.448,77.417,1.04133039]
[1771821961397,1.10609143,77.448,77.419,1.04133039]
[1771821964078,1.10609143,77.448,77.42,12.91655902]
[1771821964290,1.10609143,77.448,77.421,1.04133039]
[1771821967404,1.10609143,77.448,77.422,12.91622536]
[1771821967605,1.10609143,77.448,77.423,1.04133039]
[1771821979592,1.07852186,77.446,77.423,1.04133039]
[1771821979791,1.07852186,77.446,77.422,12.91622536]
[1771821980213,1.07852186,77.446,77.422,13.96501205]
[1771821980394,1.07852186,77.446,77.423,1.04878669]
[1771821984614,12.91238943,77.445,77.415,32.29347167]
[1771821984814,1.07852186,77.444,77.415,32.29347167]
[1771821985631,1.07852186,77.444,77.415,33.34225836]
[1771821985831,1.07852186,77.444,77.415,46.25965163]
[1771821986129,1.07852186,77.444,77.416,1.04878669]
[1771821986626,5.13254117,77.45,77.416,1.04878669]
[1771821986627,1.07852186,77.442,77.416,1.04878669]
[1771821988813,1.07852186,77.442,77.417,12.91705956]
[1771821989032,1.07852186,77.442,77.418,1.04878669]
[1771821990530,1.07852186,77.442,77.42,1.04878669]
[1771821995543,1.07852186,77.442,77.421,13.96517888]
[1771821995918,1.07852186,77.442,77.422,1.04878669]
[1771821997643,1.07852186,77.442,77.424,1.04878669]
[1771822004261,1.01041333,77.442,77.424,1.04878669]
[1771822005361,45.18561141,77.459,77.424,13.96464874]
[1771822005655,45.18561141,77.459,77.425,1.04878669]
[1771822006464,1.07852186,77.458,77.425,1.04878669]
[1771822008263,1.07852186,77.458,77.427,1.06694914]
[1771822011664,1.11477156,77.459,77.431,1.06694914]
[1771822012047,1.11477156,77.463,77.431,1.06694914]
[1771822012449,12.90682877,77.479,77.441,1.06694914]
[1771822012762,14.02160033,77.479,77.441,1.06694914]
[1771822012965,1.11477156,77.478,77.441,1.06694914]
[1771822016850,1.11477156,77.478,77.443,1.06694914]
[1771822019670,1.11477156,77.478,77.445,1.06694914]
[1771822022553,1.11477156,77.469,77.446,12.91222271]
[1771822022751,5.13254117,77.46,77.437,12.91372341]
[1771822022968,5.13254117,77.46,77.437,14.0828021]
[1771822023162,5.13254117,77.46,77.438,1.16907869]
[1771822023363,5.13254117,77.47,77.438,1.16907869]
[1771822024662,12.90705628,77.477,77.44,6.30161986]
[1771822024870,12.90705628,77.477,77.441,1.16907869]
[1771822026072,3.69383402,77.493,77.441,1.16907869]
[1771822026373,5.13254117,77.48,77.441,1.16907869]
[1771822026768,5.13254117,77.48,77.443,1.16907869]
[1771822031582,12.90553731,77.487,77.445,1.16907869]
[1771822031960,5.13254117,77.49,77.451,1.16907869]
[1771822032283,12.90505749,77.489,77.451,1.16907869]
[1771822034385,3.69383402,77.503,77.453,1.16907869]
[1771822034571,5.13254117,77.49,77.453,1.16907869]
[1771822036883,0.02002743,77.488,77.455,1.16907869]
[1771822037768,12.89105175,77.489,77.456,1.17909241]
[1771822039775,12.89105175,77.489,77.458,1.17909241]
[1771822043190,12.89105175,77.489,77.459,12.91005564]
[1771822043389,12.89105175,77.489,77.46,1.17909241]
[1771822043792,12.89105175,77.489,77.459,12.91005564]
[1771822043991,5.13254117,77.48,77.459,12.91005564]
[1771822044376,5.13254117,77.48,77.459,14.08914805]
[1771822044575,5.13254117,77.48,77.46,1.17909241]
[1771822045171,12.89105175,77.489,77.46,1.17909241]
[1771822045376,12.89105175,77.489,77.462,1.17909241]
[1771822048392,5.12823385,77.48,77.457,1.17909241]
[1771822048595,45.15369548,77.489,77.457,1.17909241]
[1771822048798,12.89105175,77.489,77.457,1.17909241]
[1771822050992,12.89105175,77.489,77.459,1.17909241]
[1771822055289,5.12823385,77.49,77.461,1.17909241]
[1771822056183,0.0208611,77.489,77.461,1.17909241]
[1771822058385,0.0225787,77.488,77.461,1.17909241]
[1771822059000,0.0225787,77.488,77.463,1.17909241]
[1771822060284,0.02426127,77.492,77.463,1.17909241]
[1771822061207,0.02509685,77.489,77.463,1.17909241]
[1771822061408,0.02509685,77.489,77.457,1.17909241]
[1771822061596,0.02509685,77.479,77.457,1.17909241]
[1771822063106,0.02509685,77.479,77.459,1.17909241]
[1771822064300,0.02754221,77.469,77.432,1.17909241]
[1771822064605,0.02754221,77.459,77.432,1.17909241]
[1771822065713,0.02754221,77.459,77.434,1.17909241]
[1771822065910,12.9088844,77.467,77.434,1.17909241]
[1771822066098,12.93723486,77.467,77.434,1.17909241]
[1771822066612,0.02914592,77.466,77.434,1.17909241]
[1771822068009,0.02914592,77.466,77.435,12.91405695]
[1771822068217,0.02914592,77.466,77.436,1.17909241]
[1771822069510,0.02914592,77.466,77.437,12.91372341]
[1771822069697,0.02914592,77.466,77.438,1.17909241]
[1771822071318,5.12823385,77.47,77.438,1.17909241]
[1771822071504,12.90705298,77.478,77.441,1.17909241]
[1771822071705,0.03370093,77.48,77.443,1.17909241]
[1771822071901,12.90555713,77.486,77.451,1.17909241]
[1771822073123,0.03370093,77.49,77.451,1.17909241]
[1771822074119,0.03370093,77.49,77.452,45.18927851]
[1771822074313,0.03370093,77.49,77.453,1.17909241]
[1771822076021,0.03653048,77.497,77.455,1.17909241]
[1771822078930,0.03653048,77.497,77.457,1.17909241]
[1771822080433,0.0399569,77.503,77.461,1.17909241]
[1771822080617,5.12823385,77.5,77.461,1.17909241]
[1771822080806,0.0399569,77.499,77.461,1.17909241]
[1771822081408,0.04061195,77.498,77.463,1.17909241]
[1771822083644,0.04191598,77.469,77.437,1.17909241]
[1771822083925,5.12823385,77.46,77.437,1.17909241]
[1771822085127,0.04191598,77.463,77.438,12.91355665]
[1771822085308,0.04191598,77.463,77.439,1.17909241]
[1771822086010,0.04317976,77.459,77.439,1.17909241]
[1771822087229,5.12823385,77.46,77.439,1.17909241]
[1771822087434,0.04443849,77.464,77.439,1.17909241]
[1771822087943,5.17267234,77.46,77.439,1.17909241]
[1771822088233,0.04443849,77.459,77.439,1.17909241]
[1771822089835,0.04443849,77.459,77.422,1.17909241]
[1771822090041,0.04566195,77.449,77.422,1.17909241]
[1771822090740,0.04566195,77.449,77.423,12.91605853]
[1771822090926,0.04566195,77.449,77.424,1.17909241]
[1771822091335,0.0468341,77.454,77.424,1.17909241]
[1771822092734,0.0468341,77.454,77.426,1.17909241]
[1771822092933,0.04741746,77.458,77.426,1.17909241]
[1771822094129,12.90898604,77.466,77.426,1.17909241]
[1771822095550,0.04913463,77.465,77.431,1.17909241]
[1771822098855,0.04913463,77.465,77.433,1.17909241]
[1771822099854,0.04913463,77.465,77.434,12.91422372]
[1771822100054,0.04913463,77.465,77.435,1.17909241]
[1771822101339,5.12823385,77.47,77.435,1.17909241]
[1771822101340,0.05337474,77.469,77.435,1.17909241]